bitfinex-derivatives/quotes_BTCF0:USTF0_20250313
["timestamp","ask_amount","ask_price","bid_price","bid_amount"]
[1741877650484,0.1823302,82286.0,82285.0,0.0727039]
[1741877650786,0.1823302,82286.0,82285.0,0.0119293]
[1741877650988,0.1215625,82277.0,82276.0,0.12174377]
[1741877651185,0.1215625,82277.0,82276.0,0.25502136]
[1741877651577,0.11929501,82300.0,82276.0,0.01189836]
[1741877651782,0.1823349,82286.0,82285.0,0.0607746]
[1741877652082,0.1823429,82279.0,82278.0,0.12156]
[1741877652386,0.1823429,82279.0,82278.0,0.01175802]
[1741877652985,0.0607804,82279.0,82278.0,0.13331902]
[1741877653487,0.1215541,82283.0,82282.0,0.1215521]
[1741877653693,0.1823315,82283.0,82282.0,0.1077]
[1741877653890,0.1077,82285.0,82276.0,0.00018227]
[1741877653891,0.1215625,82277.0,82276.0,0.00018227]
[1741877654095,0.2726025,82277.0,82276.0,0.00018227]
[1741877654388,0.2726025,82277.0,82264.0,0.1077]
[1741877654389,0.1215713,82271.0,82264.0,0.1077]
[1741877654585,0.1215713,82271.0,82264.0,0.2139]
[1741877654788,0.13355869,82271.0,82264.0,0.2139]
[1741877655194,0.13355869,82271.0,82265.0,0.1215797]
[1741877655392,0.13355869,82271.0,82270.0,0.42816538]
[1741877656181,0.1215832,82263.0,82262.0,0.00018227]
[1741877656387,0.2725032,82263.0,82262.0,0.00018227]
[1741877656995,0.121592,82257.0,82256.0,0.2165]
[1741877657290,0.0607952,82259.0,82255.0,0.55525474]
[1741877657590,0.1216083,82246.0,82245.0,0.108]
[1741877657784,0.2723283,82246.0,82245.0,0.108]
[1741877658181,0.2723283,82246.0,82237.0,0.00018238]
[1741877658182,0.1216157,82241.0,82240.0,0.1071022]
[1741877658383,0.121632,82230.0,82229.0,0.63295319]
[1741877658591,0.121632,82230.0,82229.0,0.63227319]
[1741877659394,0.272112,82230.0,82229.0,0.63227319]
[1741877659589,0.1216438,82222.0,82221.0,0.10818238]
[1741877659790,0.1216438,82222.0,82221.0,0.00018238]
[1741877660095,0.1216497,82218.0,82217.0,0.1068]
[1741877660292,0.2721297,82218.0,82217.0,0.1068]
[1741877660887,0.2721297,82218.0,82208.0,0.108]
[1741877660888,0.15048,82218.0,82208.0,0.108]
[1741877661089,0.1824881,82212.0,82211.0,0.1102]
[1741877662294,0.1216616,82210.0,82209.0,0.00018238]
[1741877662996,0.3369616,82210.0,82209.0,0.00018238]
[1741877663194,0.2153,82210.0,82208.0,0.108]
[1741877663397,0.121663,82209.0,82208.0,0.108]
[1741877663689,0.120663,82209.0,82208.0,0.108]
[1741877663894,0.1216609,82211.0,82210.0,0.1216601]
[1741877664097,0.2727809,82211.0,82210.0,0.1216601]
[1741877664496,0.2727809,82211.0,82210.0,0.2287601]
[1741877664796,0.2727809,82211.0,82210.0,0.1071]
[1741877664994,0.4905809,82211.0,82210.0,0.1071]
[1741877667599,0.4899809,82211.0,82210.0,0.1071]
[1741877667794,0.4899009,82211.0,82210.0,0.1071]
[1741877669287,0.1216719,82203.0,82188.0,0.0608466]
[1741877669593,0.1216719,82203.0,82185.0,0.1681491]
[1741877669594,0.1216719,82203.0,82190.0,0.107]
[1741877669992,0.1073,82205.0,82204.0,0.1216704]
[1741877670188,0.00018238,82211.0,82210.0,0.1216616]
[1741877670494,0.1216616,82210.0,82209.0,0.2104]
[1741877670894,0.1216616,82210.0,82209.0,0.332063]
[1741877671101,0.1216616,82210.0,82209.0,0.2104]
[1741877671792,0.1216719,82203.0,82202.0,0.00218238]
[1741877672395,0.13383693,82203.0,82202.0,0.00218238]
[1741877673199,0.13383693,82203.0,82202.0,0.00318238]
[1741877673392,0.13383693,82203.0,82202.0,8e-08]
[1741877673591,0.16216503,82203.0,82179.0,0.1078]
[1741877673787,0.119706,82180.0,82179.0,0.2101]
[1741877674489,0.119706,82180.0,82179.0,0.1078]
[1741877674694,0.332906,82180.0,82179.0,0.1078]
[1741877675992,0.332906,82180.0,82179.0,0.1108]
[1741877676187,0.34509566,82180.0,82179.0,0.1108]
[1741877677092,0.14972,82183.0,82179.0,0.1108]
[1741877677300,0.2714223,82183.0,82182.0,0.121703]
[1741877677498,0.14972,82183.0,82180.0,0.1115]
[1741877677696,0.1217045,82181.0,82180.0,0.2434083]
[1741877677903,0.1217045,82181.0,82180.0,0.121704]
[1741877678199,0.121706,82180.0,82179.0,0.006]
[1741877679895,0.121706,82180.0,82179.0,0.003]
[1741877680200,0.1217178,82172.0,82171.0,0.00012301]
[1741877680608,0.2700778,82172.0,82171.0,0.00012301]
[1741877681004,0.1826203,82154.0,82153.0,0.0608727]
[1741877681205,0.1217563,82146.0,82145.0,0.2327568]
[1741877681409,0.1217563,82146.0,82145.0,0.111]
[1741877681601,0.0608763,82149.0,82145.0,0.111]
[1741877681805,0.14828,82158.0,82157.0,0.12174]
[1741877682105,0.1826173,82156.0,82155.0,0.12174]
[1741877682303,0.14828,82158.0,82157.0,0.12174]
[1741877682908,0.2700186,82158.0,82157.0,0.12174]
[1741877683109,0.12191081,82166.0,82164.0,0.1217282]
[1741877683298,0.1217282,82165.0,82164.0,0.1217282]
[1741877684304,0.1217282,82165.0,82156.0,0.0608702]
[1741877684305,0.0608662,82163.0,82160.0,0.1826006]
[1741877684504,0.0608737,82152.0,82151.0,0.07287784]
[1741877684702,0.1826053,82161.0,82160.0,0.1217356]
[1741877685007,0.0608676,82161.0,82160.0,0.1217356]
[1741877685201,0.012,82165.0,82160.0,0.1217356]
[1741877685202,0.012,82165.0,82164.0,0.1217297]
[1741877685398,0.1337282,82165.0,82164.0,0.1217297]
[1741877685598,0.1277282,82165.0,82164.0,0.1217297]
[1741877686812,0.0668648,82165.0,82162.0,0.0608656]
[1741877687013,0.1217311,82163.0,82162.0,0.1825968]
[1741877687409,0.1217326,82162.0,82161.0,0.1031]
[1741877687610,0.121756,82150.0,82149.0,0.2434902]
[1741877687813,0.0608733,82153.0,82149.0,0.0608732]
[1741877688111,0.004,82165.0,82146.0,0.1031]
[1741877688321,0.1826153,82160.0,82159.0,0.1217317]
[1741877688614,0.008,82163.0,82157.0,0.0608693]
[1741877688813,0.1826203,82154.0,82153.0,0.0608724]
[1741877689015,0.1826203,82154.0,82153.0,0.1826184]
[1741877689217,0.2434735,82162.0,82161.0,0.1217341]
[1741877689516,0.004,82163.0,82162.0,0.1217326]
[1741877689517,0.1257315,82163.0,82162.0,0.1217326]
[1741877690118,0.121743,82155.0,82154.0,0.1826116]
[1741877690611,0.0648656,82163.0,82151.0,0.07284376]
[1741877690810,0.1865988,82163.0,82162.0,0.1217326]
[1741877691013,0.00018261,82166.0,82159.0,0.0608681]
[1741877691312,0.00018261,82166.0,82165.0,0.1217282]
[1741877691517,0.00018261,82166.0,82165.0,0.2310282]
[1741877691715,0.10896562,82170.0,82169.0,0.1217223]
[1741877691914,0.23068642,82170.0,82169.0,0.1217223]
[1741877692214,0.10896562,82170.0,82169.0,0.1217223]
[1741877692419,0.14528749,82178.0,82171.0,0.0608589]
[1741877692626,0.21793124,82187.0,82186.0,0.1216971]
[1741877693118,0.33962684,82187.0,82186.0,0.1216971]
[1741877693815,0.1216971,82186.0,82185.0,0.1093]
[1741877694014,0.2325971,82186.0,82185.0,0.1093]
[1741877694210,0.2325971,82186.0,82185.0,0.2309986]
[1741877694624,0.00182634,82189.0,82188.0,0.1216941]
[1741877695006,0.00182634,82189.0,82188.0,0.13344981]
[1741877695820,0.12351894,82189.0,82188.0,0.13344981]
[1741877696024,0.12351894,82189.0,82188.0,0.34784981]
[1741877696221,0.12351894,82189.0,82188.0,0.3360941]
[1741877696425,0.12351894,82189.0,82188.0,0.1076]
[1741877696917,0.22651894,82189.0,82188.0,0.2292941]
[1741877697623,0.10482634,82189.0,82188.0,0.2292941]
[1741877698016,0.00182634,82189.0,82188.0,0.2292941]
[1741877698422,0.00582634,82189.0,82188.0,0.2292941]
[1741877698621,0.12751894,82189.0,82188.0,0.2292941]
[1741877699326,0.13151894,82189.0,82188.0,0.2292941]
[1741877700147,0.12851894,82189.0,82188.0,0.2292941]
[1741877700424,0.1217074,82179.0,82178.0,0.12189151]
[1741877701019,0.1217074,82179.0,82178.0,0.22549151]
[1741877701218,0.2296074,82179.0,82178.0,0.22549151]
[1741877701421,0.1079,82179.0,82178.0,0.22549151]
[1741877701624,0.0608405,82197.0,82188.0,0.1216941]
[1741877701625,0.00382634,82189.0,82188.0,0.1216941]
[1741877701923,0.121706,82180.0,82179.0,0.2434038]
[1741877702118,0.121706,82180.0,82179.0,0.1217047]
[1741877702423,0.1217074,82179.0,82178.0,0.00018261]
[1741877702622,0.2296074,82179.0,82178.0,0.00018261]
[1741877703125,0.3365074,82179.0,82178.0,0.12189151]
[1741877703328,0.3365074,82179.0,82178.0,0.00018261]
[1741877704328,0.3365074,82179.0,82178.0,0.12189151]
[1741877704718,0.3405074,82179.0,82178.0,0.00018261]
[1741877704918,0.3405074,82179.0,82178.0,0.12189151]
[1741877705425,0.3435074,82179.0,82178.0,0.12189151]
[1741877705624,0.3415074,82179.0,82178.0,0.00018261]
[1741877706430,0.3435074,82179.0,82178.0,0.00018261]
[1741877706731,0.2218,82179.0,82158.0,0.0608686]
[1741877706932,0.1826026,82162.0,82161.0,0.1217341]
[1741877707429,0.2163,82164.0,82163.0,0.1217282]
[1741877707630,0.1059,82164.0,82163.0,0.2257282]
[1741877707819,0.2276297,82164.0,82163.0,0.2257282]
[1741877708427,0.001,82162.0,82149.0,0.1217453]
[1741877708619,0.1826315,82149.0,82148.0,0.1217525]
[1741877708821,0.1217549,82147.0,82146.0,0.39931109]
[1741877709021,0.14444,82156.0,82155.0,0.121743]
[1741877709234,0.061867,82162.0,82146.0,0.21668129]
[1741877709235,0.00018261,82155.0,82154.0,0.1217445]
[1741877709623,0.12192561,82155.0,82154.0,0.1217445]
[1741877711228,0.121746,82153.0,82152.0,0.060873]
[1741877711442,0.121746,82153.0,82148.0,0.1056]
[1741877711443,0.1217519,82149.0,82148.0,0.1056]
[1741877711621,0.1217519,82149.0,82148.0,0.2273524]
[1741877712219,0.1826427,82144.0,82143.0,0.0608797]
[1741877712934,0.1826669,82133.0,82132.0,0.1826565]
[1741877713230,0.1826669,82133.0,82132.0,0.3444272]
[1741877713427,0.0608883,82133.0,82132.0,0.0120746]
[1741877713629,0.0608883,82133.0,82132.0,0.1217771]
[1741877713831,0.14372,82138.0,82137.0,0.1217697]
[1741877714227,0.1065,82144.0,82143.0,0.1217608]
[1741877714426,0.2282593,82144.0,82143.0,0.1217608]
[1741877715226,0.2282593,82144.0,82120.0,0.37195396]
[1741877715227,0.1217667,82140.0,82139.0,0.1217657]
[1741877715428,0.1217667,82140.0,82139.0,0.1826469]
[1741877715931,0.1014,82140.0,82139.0,0.1826469]
[1741877716127,0.001,82144.0,82143.0,0.1217608]
[1741877716828,0.00018261,82155.0,82154.0,0.1217445]
[1741877717031,1e-08,82155.0,82154.0,0.1417445]
[1741877717526,1e-08,82155.0,82154.0,0.1217445]
[1741877718836,0.12174301,82155.0,82154.0,0.13371744]
[1741877719025,0.12174301,82155.0,82154.0,0.13571744]
[1741877719225,1e-08,82155.0,82154.0,0.13571744]
[1741877719625,0.12174301,82155.0,82154.0,0.13471744]
[1741877719926,0.00200001,82155.0,82154.0,0.13371744]
[1741877720325,0.00300001,82155.0,82154.0,0.13371744]
[1741877721531,0.12374301,82155.0,82154.0,0.13371744]
[1741877721739,0.12374301,82155.0,82154.0,0.1217445]
[1741877721932,0.1826315,82150.0,82149.0,0.2434916]
[1741877722131,0.1826315,82150.0,82149.0,0.1217471]
[1741877722332,0.0608766,82150.0,82149.0,0.1217471]
[1741877722732,0.2316471,82154.0,82153.0,0.121746]
[1741877723030,0.1099,82154.0,82153.0,0.121746]
[1741877723224,0.2316445,82154.0,82153.0,0.121746]
[1741877724029,0.3410445,82154.0,82153.0,0.121746]
[1741877724429,0.3410445,82154.0,82152.0,0.1217474]
[1741877724430,0.1826315,82149.0,82148.0,0.0608765]
[1741877725130,0.0608766,82149.0,82148.0,0.1826299]
[1741877725534,0.1217473,82153.0,82152.0,0.121746]
[1741877725836,0.1217473,82153.0,82146.0,0.01221358]
[1741877725837,0.1217549,82147.0,82146.0,0.00018261]
[1741877726833,0.1217549,82147.0,82146.0,0.12193891]
[1741877727229,0.1217549,82147.0,82146.0,0.00018261]
[1741877727534,0.1227549,82147.0,82146.0,0.00018261]
[1741877727836,0.1227549,82147.0,82146.0,0.12193891]
[1741877728035,0.1217549,82147.0,82146.0,0.00018261]
[1741877728224,0.1217549,82147.0,82146.0,0.12193891]
[1741877728225,0.1227549,82147.0,82146.0,0.12193891]
[1741877728531,0.1227549,82147.0,82146.0,0.00018261]
[1741877728840,0.1227549,82147.0,82146.0,0.12193891]
[1741877729031,0.001,82147.0,82146.0,0.12193891]
[1741877729338,0.1237549,82147.0,82146.0,0.12193891]
[1741877729836,0.1069,82147.0,82146.0,0.12193891]
[1741877730027,0.1069,82147.0,82146.0,0.23243891]
[1741877732831,1e-08,82155.0,82154.0,0.1217445]
[1741877733038,1e-08,82155.0,82154.0,0.2263445]
[1741877733739,0.12174301,82155.0,82154.0,0.3328445]
[1741877733947,0.00300001,82155.0,82154.0,0.3328445]
[1741877734146,0.11080001,82155.0,82154.0,0.3328445]
[1741877734335,0.11080001,82155.0,82154.0,0.34483039]
[1741877734530,0.23254301,82155.0,82154.0,0.34483039]
[1741877734739,0.23054301,82155.0,82154.0,0.34483039]
[1741877734939,0.23354301,82155.0,82154.0,0.34483039]
[1741877735438,0.23054301,82155.0,82154.0,0.24023039]
[1741877735643,0.23254301,82155.0,82154.0,0.24023039]
[1741877736244,0.23254301,82155.0,82154.0,0.2282445]
[1741877736445,0.34434301,82155.0,82154.0,0.2282445]
[1741877736639,0.34334301,82155.0,82154.0,0.2282445]
[1741877736841,0.1217549,82147.0,82146.0,0.12193501]
[1741877737047,0.0608756,82150.0,82146.0,0.12193501]
[1741877737342,0.294431,82149.0,82148.0,0.1217519]
[1741877737542,0.1118,82149.0,82148.0,0.1217519]
[1741877737845,0.2335519,82149.0,82148.0,0.2285519]
[1741877738247,0.1118,82149.0,82148.0,0.3426519]
[1741877738545,0.1128,82149.0,82148.0,0.3426519]
[1741877738739,1e-07,82149.0,82148.0,0.8826519]
[1741877739047,1e-08,82155.0,82154.0,0.1217445]
[1741877739344,0.0608694,82158.0,82154.0,0.62118]
[1741877739551,0.0608694,82158.0,82156.0,0.1217415]
[1741877739552,0.1113,82157.0,82156.0,0.1217415]
[1741877739848,0.1118,82157.0,82156.0,0.1417415]
[1741877740040,0.1118,82157.0,82156.0,0.2482415]
[1741877740240,0.1118,82157.0,82156.0,0.1417415]
[1741877740739,0.1138,82157.0,82156.0,0.1417415]
[1741877740940,0.23754,82157.0,82156.0,0.1217415]
[1741877741335,0.34884,82157.0,82156.0,0.1217415]
[1741877742043,0.1217415,82156.0,82155.0,0.1217415]
[1741877742346,0.2271,82157.0,82156.0,0.1217415]
[1741877742541,0.1153,82157.0,82156.0,0.1217415]
[1741877743139,0.002,82157.0,82156.0,0.2241415]
[1741877743442,0.12374,82157.0,82156.0,0.1217415]
[1741877743937,0.22754,82157.0,82156.0,0.1217415]
[1741877744140,0.1058,82157.0,82146.0,0.00018261]
[1741877744337,0.1826271,82152.0,82151.0,0.1826152]
[1741877744534,0.0608719,82155.0,82150.0,0.0608741]
[1741877744848,0.1826057,82164.0,82163.0,0.1217297]
[1741877745035,0.1666676,82164.0,82163.0,0.1217297]
[1741877745239,0.1058,82164.0,82163.0,0.1217297]
[1741877745435,0.1058,82164.0,82163.0,0.13346234]
[1741877745636,0.2275297,82164.0,82163.0,0.13346234]
[1741877745950,0.2275297,82164.0,82163.0,0.1217297]
[1741877746150,0.2275297,82164.0,82163.0,0.13398107]
[1741877746443,0.1826182,82154.0,82153.0,0.1217457]
[1741877747039,0.0608712,82156.0,82155.0,0.121743]
[1741877747040,0.1826153,82156.0,82155.0,0.121743]
[1741877747235,0.060871,82156.0,82155.0,0.121743]
[1741877747436,0.107,82158.0,82155.0,0.121743]
[1741877747649,0.2287387,82158.0,82157.0,0.12174]
[1741877749846,0.2297387,82158.0,82157.0,0.12174]
[1741877750347,0.001,82158.0,82157.0,0.12174]
[1741877750537,0.06104781,82165.0,82164.0,0.1217297]
[1741877750737,0.24364651,82165.0,82164.0,0.1217297]
[1741877751249,0.06104781,82165.0,82164.0,0.1217297]
[1741877751644,0.00018261,82165.0,82164.0,0.1217297]
[1741877752139,0.00018261,82165.0,82164.0,0.5917297]
[1741877752343,0.18329427,82167.0,82166.0,0.1217267]
[1741877752747,0.18329427,82167.0,82166.0,0.1417267]
[1741877753143,0.18146772,82167.0,82166.0,0.1417267]
[1741877753449,0.1061,82174.0,82170.0,0.1217208]
[1741877753450,0.1457272,82171.0,82170.0,0.1217208]
[1741877753647,0.2674465,82171.0,82170.0,0.1217208]
[1741877754145,0.2674465,82171.0,82167.0,0.0608623]
[1741877754146,0.1217237,82168.0,82167.0,0.0608623]
[1741877754351,0.0608625,82168.0,82164.0,0.01181931]
[1741877754551,0.2199,82167.0,82162.0,0.00018261]
[1741877754746,0.1217311,82163.0,82162.0,0.00018261]
[1741877755146,0.1217311,82163.0,82162.0,0.12191521]
[1741877755549,0.1217311,82163.0,82162.0,0.22661521]
[1741877756158,0.1217311,82163.0,82162.0,0.00018261]
[1741877756547,0.1217311,82163.0,82162.0,0.12191521]
[1741877756857,0.1217311,82163.0,82162.0,0.00018261]
[1741877756858,0.1227311,82163.0,82162.0,0.00018261]
[1741877757057,0.1227311,82163.0,82162.0,0.12191521]
[1741877757650,0.001,82163.0,82162.0,0.12191521]
[1741877758457,0.001,82163.0,82162.0,0.24381521]
[1741877758756,0.001,82163.0,82162.0,0.47369521]
[1741877759545,0.001,82163.0,82162.0,1.03369521]
[1741877759746,0.1457272,82174.0,82173.0,0.1217163]
[1741877760054,0.18146772,82177.0,82174.0,0.1217149]
[1741877760251,0.1033,82176.0,82174.0,0.3266149]
[1741877760554,0.1033,82176.0,82164.0,0.1825839]
[1741877760757,0.1033,82176.0,82162.0,0.11138261]
[1741877760758,0.1217311,82163.0,82162.0,0.00018261]
[1741877760953,0.1217504,82150.0,82145.0,0.28868122]
[1741877761557,0.1187504,82150.0,82145.0,0.28868122]
[1741877761855,0.26933946,82150.0,82149.0,0.04808129]
[1741877762053,0.26933946,82150.0,82145.0,0.28868122]
[1741877762054,0.1217563,82146.0,82145.0,0.18212918]
[1741877762559,0.1217623,82142.0,82141.0,0.00018261]
[1741877763451,0.1217623,82142.0,82141.0,1e-08]
[1741877763862,0.2717623,82142.0,82141.0,1e-08]
[1741877764453,0.4104023,82142.0,82141.0,1e-08]
[1741877764760,0.4134023,82142.0,82141.0,1e-08]
[1741877765153,0.2634023,82142.0,82141.0,1e-08]
[1741877765850,0.4134023,82142.0,82141.0,1e-08]
[1741877766851,0.1217919,82122.0,82115.0,0.42995226]
[1741877767057,0.2601919,82122.0,82115.0,0.42995226]
[1741877767756,0.2601919,82122.0,82115.0,0.55175386]
[1741877767955,0.2601919,82122.0,82121.0,0.48264493]
[1741877768153,0.1384,82122.0,82121.0,0.48264493]
[1741877768354,0.1064,82123.0,82122.0,0.1217919]
[1741877768559,0.1064,82123.0,82122.0,0.3364919]
[1741877769056,0.2281904,82123.0,82122.0,0.3364919]
[1741877769956,0.2281904,82123.0,82122.0,0.1084]
[1741877770159,0.1217919,82122.0,82121.0,0.002]
[1741877770456,0.1218216,82102.0,82101.0,0.3350231]
[1741877770766,0.1218216,82102.0,82101.0,0.1084]
[1741877771470,0.1218216,82102.0,82101.0,0.2302231]
[1741877771670,0.001,82102.0,82100.0,0.1]
[1741877771864,0.2282231,82101.0,82100.0,0.1]
[1741877772263,0.1218438,82087.0,82081.0,0.42995226]
[1741877772459,0.2610438,82087.0,82084.0,0.0609241]
[1741877772765,0.2610438,82087.0,82086.0,0.1218453]
[1741877773165,0.2610438,82087.0,82085.0,0.1077]
[1741877773166,0.15091307,82087.0,82085.0,0.1077]
[1741877773373,0.2338453,82086.0,82085.0,0.2295464]
[1741877774868,0.112,82086.0,82085.0,0.2295464]
[1741877775071,0.003,82102.0,82085.0,0.1077]
[1741877775372,1e-07,82102.0,82101.0,0.1218231]
[1741877775565,0.12129059,82118.0,82109.0,0.1218112]
[1741877775867,0.01196415,82117.0,82109.0,0.1218112]
[1741877776060,0.0609002,82117.0,82109.0,0.1218112]
[1741877776261,0.0608928,82127.0,82109.0,0.1218112]
[1741877776461,0.13904,82130.0,82109.0,0.6218112]
[1741877776462,1e-08,82110.0,82109.0,0.6218112]
[1741877776760,0.12180971,82110.0,82109.0,0.63398799]
[1741877776959,0.1218127,82108.0,82107.0,0.2851176]
[1741877777862,1e-08,82110.0,82109.0,0.1218112]
[1741877778063,1e-08,82110.0,82109.0,0.1248112]
[1741877778264,1e-08,82110.0,82109.0,0.3861712]
[1741877778659,1e-08,82110.0,82109.0,0.3851712]
[1741877778864,1e-08,82110.0,82109.0,0.3651712]
[1741877778865,0.12180971,82110.0,82109.0,0.3651712]
[1741877779067,1e-08,82110.0,82109.0,0.3651712]
[1741877779463,1e-08,82110.0,82109.0,0.3861712]
[1741877779966,1e-08,82110.0,82109.0,0.3631712]
[1741877780174,1e-08,82110.0,82109.0,0.3641712]
[1741877780766,1e-08,82110.0,82109.0,0.3661712]
[1741877781664,1e-08,82110.0,82109.0,0.3641712]
[1741877781971,1e-08,82110.0,82109.0,0.3651712]
[1741877782179,0.12180971,82110.0,82109.0,0.3651712]
[1741877782365,1e-08,82110.0,82109.0,0.3651712]
[1741877782967,1e-08,82110.0,82109.0,0.3851712]
[1741877783369,1e-08,82110.0,82109.0,0.3951712]
[1741877783874,1e-08,82110.0,82109.0,0.4964712]
[1741877784072,1e-08,82110.0,82109.0,0.4974712]
[1741877784269,1e-08,82110.0,82109.0,0.6474712]
[1741877784466,0.0608708,82156.0,82109.0,0.6474712]
[1741877784467,0.06270855,82142.0,82141.0,0.1217637]
[1741877784671,0.0608873,82135.0,82134.0,0.0608853]
[1741877785385,0.1217756,82133.0,82132.0,0.2057]
[1741877785678,0.1217756,82133.0,82126.0,0.00018261]
[1741877785980,0.121783,82128.0,82127.0,0.1076]
[1741877786572,0.121783,82128.0,82127.0,0.2293845]
[1741877786776,0.1217845,82127.0,82126.0,0.00018261]
[1741877786979,0.2226845,82127.0,82126.0,0.00018261]
[1741877787172,0.3610445,82127.0,82126.0,0.00018261]
[1741877787477,0.4686445,82127.0,82126.0,0.00018261]
[1741877787780,0.1218097,82110.0,82109.0,0.1076]
[1741877788175,0.1218097,82110.0,82109.0,0.2294112]
[1741877788382,0.1218097,82110.0,82109.0,0.1076]
[1741877788677,0.1218097,82110.0,82109.0,0.2294112]
[1741877788678,0.2259097,82110.0,82109.0,0.2294112]
[1741877789075,0.2259097,82110.0,82109.0,0.1076]
[1741877789277,0.3270097,82110.0,82109.0,0.1076]
[1741877789467,0.3280097,82110.0,82109.0,0.1076]
[1741877789673,0.3280097,82110.0,82109.0,0.2294112]
[1741877789875,0.3300097,82110.0,82109.0,0.2294112]
[1741877790282,0.3300097,82110.0,82109.0,0.1076]
[1741877790878,0.2289097,82110.0,82109.0,0.2294112]
[1741877792179,0.2289097,82110.0,82109.0,0.1076]
[1741877792386,0.3403097,82110.0,82109.0,0.1076]
[1741877793679,0.2289097,82110.0,82109.0,0.2294112]
[1741877793992,0.1248097,82110.0,82091.0,0.1098]
[1741877794185,0.1218349,82093.0,82092.0,0.1016]
[1741877794382,0.1218557,82079.0,82078.0,0.1016]
[1741877794683,0.1218557,82079.0,82078.0,0.3270572]
[1741877794883,0.1218557,82079.0,82078.0,0.2052]
[1741877795182,0.1218557,82079.0,82078.0,0.1036]
[1741877795183,0.2311557,82079.0,82078.0,0.1036]
[1741877795387,0.34421912,82079.0,82078.0,0.1036]
[1741877795581,0.24301912,82079.0,82078.0,0.1036]
[1741877795773,0.1063,82079.0,82078.0,0.2254572]
[1741877795973,0.2281557,82079.0,82078.0,0.2052]
[1741877796175,0.2281557,82079.0,82078.0,0.1036]
[1741877796385,0.2281557,82079.0,82078.0,0.2254572]
[1741877796586,0.1023,82079.0,82078.0,0.2254572]
[1741877796786,0.1827763,82084.0,82083.0,0.1218498]
[1741877797086,0.13708,82086.0,82083.0,0.1218498]
[1741877797087,0.3198506,82086.0,82085.0,0.1218468]
[1741877797280,0.1827706,82086.0,82085.0,0.1218468]
[1741877797678,0.1827706,82086.0,82085.0,0.2251468]
[1741877798084,0.00915829,82093.0,82090.0,0.1218364]
[1741877798281,0.00915829,82093.0,82091.0,0.2128]
[1741877798594,0.1218364,82092.0,82091.0,0.2128]
[1741877798889,0.1218364,82092.0,82091.0,0.3346379]
[1741877799083,0.1827428,82098.0,82097.0,0.1827377]
[1741877799387,0.1827428,82098.0,82097.0,0.243651]
[1741877799586,0.1827428,82098.0,82097.0,0.1218264]
[1741877800387,0.1847428,82098.0,82097.0,0.1218264]
[1741877800588,0.1218364,82092.0,82091.0,0.34698881]
[1741877800784,0.1218364,82092.0,82091.0,0.1095]
[1741877801494,0.2104,82094.0,82077.0,0.13796]
[1741877801685,0.1218676,82071.0,82070.0,0.60228601]
[1741877801881,0.1218676,82071.0,82070.0,0.1951722]
[1741877802286,0.1218676,82071.0,82070.0,0.134245]
[1741877802677,0.2292676,82072.0,82071.0,0.1218676]
[1741877802889,0.1074,82072.0,82071.0,0.1218676]
[1741877803083,0.00018274,82079.0,82078.0,0.1218572]
[1741877803283,0.12203844,82079.0,82078.0,0.1218572]
[1741877804288,0.1218587,82077.0,82076.0,0.1013]
[1741877804492,0.1218587,82077.0,82076.0,0.2231602]
[1741877804990,0.2307587,82077.0,82076.0,0.2231602]
[1741877805383,0.2307587,82077.0,82076.0,0.1013]
[1741877805584,0.2307587,82077.0,82076.0,0.2231602]
[1741877805892,0.2307587,82077.0,82076.0,0.3335602]
[1741877806090,0.2307587,82077.0,82076.0,0.2231602]
[1741877806392,0.2307587,82077.0,82076.0,0.1013]
[1741877806588,0.2307587,82077.0,82076.0,0.2231602]
[1741877807193,0.1119,82077.0,82076.0,0.2231602]
[1741877807393,0.2337587,82077.0,82076.0,0.2231602]
[1741877807594,0.2367587,82077.0,82076.0,0.2231602]
[1741877808095,0.1149,82077.0,82076.0,0.2231602]
[1741877808492,0.1149,82077.0,82076.0,0.3318602]
[1741877808689,0.2367587,82077.0,82076.0,0.3318602]
[1741877809001,0.2357587,82077.0,82076.0,0.3318602]
[1741877809287,0.2357587,82077.0,82076.0,0.21]
[1741877809489,0.1218676,82071.0,82070.0,8.971e-05]
[1741877809689,0.1218676,82071.0,82070.0,0.12195881]
[1741877810090,0.2316676,82071.0,82070.0,0.33775881]
[1741877810883,0.1098,82071.0,82070.0,0.33775881]
[1741877811294,0.2336676,82071.0,82070.0,0.33775881]
[1741877811695,0.1118,82071.0,82070.0,0.33775881]
[1741877812282,0.1128,82071.0,82070.0,0.33775881]
[1741877812689,0.003,82071.0,82070.0,0.33775881]
[1741877813790,0.002,82071.0,82070.0,0.33775881]
[1741877815100,0.001,82071.0,82070.0,0.33775881]
[1741877815491,0.1228676,82071.0,82070.0,0.33775881]
[1741877816096,0.1228676,82071.0,82070.0,0.33975881]
[1741877816598,0.1141,82071.0,82070.0,0.33975881]
[1741877816799,0.1141,82071.0,82070.0,0.33775881]
[1741877817099,0.1141,82071.0,82070.0,0.33975881]
[1741877817287,0.2359676,82071.0,82070.0,0.33975881]
[1741877817695,0.2369676,82071.0,82070.0,0.33775881]
[1741877819299,0.2359676,82071.0,82070.0,0.33775881]
[1741877819491,0.2369676,82071.0,82070.0,0.33775881]
[1741877819890,0.2359676,82071.0,82070.0,0.33775881]
[1741877820101,0.2369676,82071.0,82070.0,0.33775881]
[1741877820299,0.1629676,82071.0,82070.0,0.33775881]
[1741877820893,0.1629676,82071.0,82054.0,0.00072]
[1741877820894,0.152,82071.0,82054.0,0.00072]
[1741877821198,0.1218958,82052.0,82051.0,0.01204911]
[1741877821394,0.1218958,82052.0,82051.0,0.13394641]
[1741877821594,0.1218958,82052.0,82051.0,0.35664641]
[1741877821898,0.1218958,82052.0,82051.0,0.3445973]
[1741877822092,0.1218958,82052.0,82051.0,0.35693094]
[1741877822290,0.0609451,82056.0,82053.0,0.1218943]
[1741877822499,0.0609451,82056.0,82055.0,0.1218914]
[1741877822898,0.01199675,82060.0,82055.0,0.3447914]
[1741877823100,0.00018274,82060.0,82059.0,0.1218854]
[1741877823296,0.00018274,82060.0,82059.0,0.13414541]
[1741877824297,0.00218274,82060.0,82059.0,0.13414541]
[1741877824898,0.00318274,82060.0,82059.0,0.13414541]
[1741877825099,0.12506664,82060.0,82059.0,0.1218854]
[1741877825307,0.1218899,82056.0,82055.0,0.3447913]
[1741877825693,0.1218899,82056.0,82055.0,0.2328914]
[1741877826100,0.323,82059.0,82058.0,0.1218869]
[1741877826303,0.00218274,82060.0,82058.0,0.0609434]
[1741877826601,0.12406664,82060.0,82059.0,0.3381854]
[1741877827007,0.22826664,82060.0,82059.0,0.3381854]
[1741877827201,0.22826664,82060.0,82059.0,0.2163]
[1741877827202,0.22726664,82060.0,82059.0,0.2163]
[1741877827407,0.22726664,82060.0,82059.0,0.2347854]